Cogmind - Beta 11.1 @@@ ROGUE MODE // 2022.04.29 @ 01:35:55 Player: Olga Result: Self-destructed Performance ------------- Evolutions (3) 1500 Regions Visited (5) 1000 Robots Destroyed (69) 345 Value Destroyed (2579) 2579 Prototype IDs (5) 100 Alien Tech Used (0) 0 Bonus (260) 260 TOTAL SCORE: 5784 Bonus ------- Pacifist 200 Follower Combat Kills 60 Cogmind --------- Core Integrity 51/700 Matter 279/300 Energy 100/100 System Corruption 22% Temperature Cool (0) Movement Core (450) Ox8 Location -7/Factory Parts ------- > --- POWER (1) -------- (None) > --- PROPULSION (4) --- (None) > --- UTILITY (6) ------ Large Storage Unit Terrain Scan Processor Improved Melee Analysis Suite Improved Melee Analysis Suite > --- WEAPON (2) ------- Impact Mace Impact Mace > --- INVENTORY (15) --- Improved Ion Engine Light Deuterium Engine Light Nuclear Core Micro Nuclear Core Micro Nuclear Core Improved Signal Interpreter Hacking Suite Long-range Tractor Beam Gatling Laser Precision Assault Rifle Mining Laser Great Axe Peak State ------------ > --- POWER ------------ Micro Nuclear Core > --- PROPULSION ------- Light Treads Carbon-fiber Leg Armored Huge Wheel > --- UTILITY ---------- Large Storage Unit Improved Terrain Scanner Improved Terrain Scan Processor Improved Targeting Computer Improved Light Armor Plating Improved Light Armor Plating > --- WEAPON ----------- Flak Cannon Advanced Assault Cannon > --- INVENTORY -------- Ion Engine Improved Ion Engine Improved Ion Engine Light Deuterium Engine Micro Nuclear Core Micro Nuclear Core Improved Signal Interpreter Terrain Scan Processor Seismic Detector Light Armor Plating Hacking Suite Long-range Tractor Beam Long-range Tractor Beam Light Cannon Mining Laser [Rating: 41] Favorites ----------- Power Micro Nuclear Core Engine Ion Engine Power Core Micro Nuclear Core Propulsion Light Treads Treads Light Treads Leg Aluminum Leg Wheel Wheel Hover Unit Improved Hover Unit Utility Large Storage Unit Device Improved Terrain Scanner Storage Large Storage Unit Processor Improved Melee Analysis Suite Protection Improved Light Armor Plating Weapon Impact Mace Energy Gun Medium Laser Ballistic Gun Heavy Assault Rifle Ballistic Cannon Bore Cannon Impact Weapon Impact Mace Build | -11 -10 -9 -9 -8 -7 ------- Run | Scr Mat Mat Min Mat Fac Slots Evolved 6 | . . 2 . 2 2 Power . | . . . . . . Propulsion 2 | . . . . 2 . Utility 4 | . . 2 . . 2 Weapon . | . . . . . . Parts Attached 104 | . 2 12 12 27 51 Power 12 | . . 1 2 2 7 Engine 8 | . . 1 2 . 5 Core 4 | . . . . 2 2 Reactor . | . . . . . . Propulsion 35 | . . 4 2 13 16 Treads 19 | . . 4 2 4 9 Leg 7 | . . . . 5 2 Wheel 7 | . . . . 2 5 Hover 2 | . . . . 2 . Flight . | . . . . . . Utility 38 | . 2 7 5 8 16 Device 14 | . 1 2 3 3 5 Storage 4 | . 1 1 1 . 1 Processor 7 | . . . . 2 5 Hackware . | . . . . . . Protection 13 | . . 4 1 3 5 Artifact . | . . . . . . Weapon 19 | . . . 3 4 12 Energy Gun 4 | . . . 2 1 1 Energy Cannon . | . . . . . . Ballistic Gun 5 | . . . . 2 3 Ballistic Cannon 7 | . . . 1 1 5 Launcher . | . . . . . . Special Weapon . | . . . . . . Impact Weapon 3 | . . . . . 3 Slashing Weapon . | . . . . . . Piercing Weapon . | . . . . . . Special Melee Weapon . | . . . . . . Unidentified Prototypes 5 | . . . . . 5 Corrupted Parts 1 | . . . . . 1 System Corruption 15 | . . . . . 15 Parts Lost 39 | . . . 5 10 24 Power 5 | . . . 1 . 4 Propulsion 17 | . . . 1 5 11 Utility 13 | . . . 2 4 7 Weapon 4 | . . . 1 1 2 Highest Loss Streak 7 | . . . 3 3 7 To Critical Strikes . | . . . . . . Average Slot Usage (%) 85 | . 96 94 76 96 80 Engine 4 | . 14 11 9 . 3 Core 3 | . . . . 8 3 Treads 11 | . . 17 16 7 11 Leg 8 | . 28 2 . 20 6 Wheel 2 | . . . . 3 3 Device 10 | . 10 20 18 12 6 Storage 8 | . 14 11 9 9 7 Processor 9 | . . . . 5 15 Protection 7 | . . 9 6 7 7 Energy Gun 4 | . 28 22 11 2 . Ballistic Gun 1 | . . . . 1 1 Ballistic Cannon 7 | . . . 4 14 6 Impact Weapon 3 | . . . . . 6 Naked Turns 65 | . . . 65 . . Heaviest Build 57 | 14 20 40 45 46 57 Greatest Support 66 | 20 20 43 43 40 66 Greatest Overweight (x) 10 | . . 1 1 6 10 Average Overweight (x) . | . . . . 1 1 Largest Inventory Capacity 15 | . 10 15 15 15 15 Average Capacity 14 | . 8 12 13 15 15 Most Carried 15 | . 9 11 11 15 15 Average Carried 12 | . 7 9 9 13 12 Final Capacity 15 | 8 10 15 15 15 15 Final Carried 13 | 6 9 11 10 13 12 Class Distribution -------------------- 56% | Mutant 43% | Scavenger-Mutant Dominant Class ---------------- Mutant | -10/Materials Mutant | -9/Materials Mutant | -9/Mines Mutant | -8/Materials Scavenger-Mutant | -7/Factory Resources | -11 -10 -9 -9 -8 -7 ----------- Run | Scr Mat Mat Min Mat Fac Matter Collected 2621 | 187 . 153 174 921 1186 Remotely 454 | . . . . 394 60 Salvage Created 2514 | . . 283 32 785 1414 Parts 99 | . . 11 . 42 46 Haulers Intercepted 4 | . . . . . 4 Recyclers Shooed 2 | . . . . . 2 Parts Field Recycled . | . . . . . . Retrieved Matter . | . . . . . . Parts Self-Destructed . | . . . . . . Prevented . | . . . . . . Kills | -11 -10 -9 -9 -8 -7 ------- Run | Scr Mat Mat Min Mat Fac Combat Hostiles Destroyed 55 | . . 4 2 21 28 Melee 6 | . . . . . 6 Guns 11 | . . 3 2 3 3 Cannons 30 | . . . . 18 12 Classes Destroyed 14 | . . 3 1 6 4 Worker 2 | . . . . . 2 Builder 2 | . . . . 1 1 Hauler 4 | . . . . . 4 Recycler 4 | . . 1 . 1 2 Operator 1 | . . . . . 1 Watcher 3 | . . . . 1 2 Swarmer 8 | . . . . 4 4 Grunt 13 | . . 1 . 5 7 Brawler 1 | . . . . 1 . Duelist 1 | . . . . 1 . Sentry 19 | . . 3 . 8 8 Hunter 4 | . . . . 2 2 Programmer 7 | . . . . . 7 Assembled 2 | . . . 2 . . Best Kill Streak 6 | . . 1 2 6 6 Combat Bots Only 5 | . . 1 2 4 5 Max Kills in Single Turn 2 | . . 1 1 2 1 Gunslinging . | . . . . . . Exploded . | . . . . . . Melee 1 | . . . . . 1 Uniques/NPCs Destroyed . | . . . . . . Combat | -11 -10 -9 -9 -8 -7 -------- Run | Scr Mat Mat Min Mat Fac Damage Taken 7100 | . 7 329 620 1494 4650 Core 1143 | . . 55 199 240 649 Absorbed by Shields . | . . . . . . Core Remaining (%) 73 | 100 100 . 36 56 . Volleys Fired 189 | . 2 20 16 84 67 Largest 2 | . 2 2 2 2 2 Hottest 107 | . 100 100 107 97 92 Shots Fired 347 | . 4 40 27 147 129 Gun 129 | . 4 40 19 27 39 Cannon 218 | . . . 8 120 90 Launcher . | . . . . . . Special . | . . . . . . Kinetic 258 | . . . 8 128 122 Thermal 82 | . 4 40 19 19 . Explosive . | . . . . . . Electromagnetic 7 | . . . . . 7 Robot Hit Streak 18 | . 4 11 4 10 18 Robot Miss Streak 8 | . . 2 8 4 5 Penetration Max 1 | . . . . 1 . Secondary Targets 1 | . . . 1 . . Max Gunslinging Chain 1 | . . . 1 . . Shots Hit Robots 277 | . 4 29 10 89 145 Core Hits 107 | . 1 9 5 37 55 Critical Kills 10 | . . . . 9 1 Critical Parts Destroyed 24 | . . . . 14 10 Critical Strikes 46 | . 1 2 2 26 15 Burn 5 | . 1 2 2 . . Destroy 24 | . . . . 24 . Blast 6 | . . . . 2 4 Smash 11 | . . . . . 11 Melee Attacks 61 | . . . . . 61 Impact 61 | . . . . . 61 Slashing . | . . . . . . Piercing . | . . . . . . Sneak Attacks 8 | . . . . . 8 Combat Hostiles . | . . . . . . Follow-up Attacks 9 | . . . . . 9 Damage Inflicted 7223 | . 51 360 135 1838 4839 Guns 1266 | . 51 360 124 201 530 Cannons 3202 | . . . . 1630 1572 Explosions . | . . . . . . Melee 2708 | . . . . . 2708 Ramming 47 | . . . 11 7 29 Kinetic 3702 | . . . . 1679 2023 Thermal 687 | . 51 360 124 152 . Explosive . | . . . . . . Electromagnetic 79 | . . . . . 79 Impact 2708 | . . . . . 2708 Slashing . | . . . . . . Piercing . | . . . . . . Highest Corruption 22 | . . . 9 5 22 Average Corruption 10 | . . . 8 4 14 Corruption Purged . | . . . . . . Corruption Blocked . | . . . . . . Effects 92 | . . . 14 19 59 Message Errors 27 | . . . 4 9 14 Matter Fused 19 | . . . 3 3 13 Heat Flow Errors 13 | . . . 2 1 10 Energy Discharges 9 | . . . 2 . 7 Parts Rejected 3 | . . . . . 3 Data Loss (minor) 11 | . . . . 4 7 Data Loss (major) 4 | . . . 1 1 2 Misfires 4 | . . . 2 1 1 Alerts 1 | . . . . . 1 Misdirections 1 | . . . . . 1 Overload Shots . | . . . . . . Overflow Damage 1104 | . . . . . 1104 Projectiles 33 | . . . . . 33 Explosions . | . . . . . . Melee 1071 | . . . . . 1071 Knockbacks 31 | . . . . 8 23 Impact 11 | . . . . . 11 Kinetic 19 | . . . . 7 12 Secondary 1 | . . . . 1 . Self-Inflicted Damage 8 | . . . 2 . 6 Shots . | . . . . . . Rammed 9 | . . . 2 3 4 Targets Rammed 12 | . . . 2 4 6 Kicked 2 | . . . . 1 1 Crushed 1 | . . . . . 1 Highest Temperature 343 | . 39 246 322 343 263 Average Temperature 87 | . 20 82 116 104 61 Received Heat Transfer 1759 | . . 135 310 405 909 Effects 7 | . . . 1 6 . Energy Bleed 1 | . . . 1 . . Interference 5 | . . . . 5 . Short Circuit 1 | . . . . 1 . Siege Activations . | . . . . . . Robots Corrupted . | . . . . . . Combat Hostiles . | . . . . . . Parts Fried 11 | . . . . . 11 Impact Corruptions 42 | . . . . . 42 Robots Melted 1 | . . 1 . . . Combat Hostiles 1 | . . 1 . . . Parts Melted 6 | . . 4 . 2 . Heat Transferred 2311 | . 222 1221 518 350 . Parts Sabotaged . | . . . . . . Parts Stolen . | . . . . . . Parts Stripped . | . . . . . . Power Chain Reactions . | . . . . . . Missiles Intercepted . | . . . . . . Alert | -11 -10 -9 -9 -8 -7 ------- Run | Scr Mat Mat Min Mat Fac Peak Influence 387 | . 20 161 69 279 387 Initial 26 | . . 8 8 26 25 Average 118 | . 13 72 22 114 152 Maximum Alert Level 1 | . . . . 1 1 Low Security (%) 75 | . 100 100 100 73 66 Level 1 24 | . . . . 26 33 Level 2 . | . . . . . . Level 3 . | . . . . . . Level 4 . | . . . . . . Level 5 . | . . . . . . High Security . | . . . . . . Max Security . | . . . . . . Squads Dispatched 17 | . . 1 . 6 10 Investigation 2 | . . 1 . . 1 Extermination 5 | . . . . . 5 Reinforcement 7 | . . . . 3 4 Assault . | . . . . . . Garrison 3 | . . . . 3 . Intercept . | . . . . . . Searches Triggered . | . . . . . . Construction Impeded 1 | . . . . 1 . Haulers Reinforced 3 | . . . . . 3 Active Scanning Responses . | . . . . . . Cargo Convoy Interrupts 1 | . . . . . 1 Stealth | -11 -10 -9 -9 -8 -7 --------- Run | Scr Mat Mat Min Mat Fac Distress Signals 7 | . . 1 . 4 2 Communications Jammed . | . . . . . . Distress Signals . | . . . . . . Times Spotted 102 | . 3 7 14 29 49 Peak Tracking Total 7 | . . 3 7 6 5 Tactical Retreats 7 | . . . 3 . 4 Traps | -11 -10 -9 -9 -8 -7 ------- Run | Scr Mat Mat Min Mat Fac Traps Triggered 2 | . . 2 . . . Indirectly . | . . . . . . Trap Hack Attempts . | . . . . . . Triggered . | . . . . . . Disarmed . | . . . . . . Reprogrammed . | . . . . . . Reused . | . . . . . . Traps Extracted . | . . . . . . Installed . | . . . . . . Triggered 2 | . . . . . 2 Machines | -11 -10 -9 -9 -8 -7 ---------- Run | Scr Mat Mat Min Mat Fac Machines Disabled 3 | . . . 2 . 1 Max in Single Turn 1 | . . . 1 . 1 Machines Sabotaged . | . . . . . . Garrisons Compromised 2 | . . . . . 2 Overloaded Fab Kills . | . . . . . . Hacking | -11 -10 -9 -9 -8 -7 --------- Run | Scr Mat Mat Min Mat Fac Machines Accessed 11 | . 2 2 . 2 5 Terminals 10 | . 2 2 . 2 4 Fabricators . | . . . . . . Repair Stations . | . . . . . . Recycling Units 1 | . . . . . 1 Scanalyzers . | . . . . . . Garrison Access . | . . . . . . Total Hacks 24 | . 4 5 . 5 10 Successful 15 | . 3 3 . 3 6 Failed 9 | . 1 2 . 2 4 Catastrophic . | . . . . . . Database Lockouts . | . . . . . . Manual 13 | . 3 5 . 1 4 Terminals 22 | . 4 5 . 5 8 Fabricators . | . . . . . . Repair Stations . | . . . . . . Recycling Units 2 | . . . . . 2 Scanalyzers . | . . . . . . Garrison Access . | . . . . . . Terminal Hacks 11 | . 2 2 . 3 4 Branch Access Points 3 | . 1 1 . . 1 Emergency Access Points 1 | . . . . 1 . Alert Level 1 | . . . . . 1 Unreport Threat 3 | . . . . 2 1 Zone Layout 3 | . 1 1 . . 1 Fabricator Hacks . | . . . . . . Repair Station Hacks . | . . . . . . Recycling Unit Hacks 2 | . . . . . 2 Retrieve Matter 1 | . . . . . 1 Retrieve Components 1 | . . . . . 1 Scanalyzer . | . . . . . . Garrison Access Hacks . | . . . . . . Unauthorized Hacks 2 | . 1 1 . . . Terminals 2 | . 1 1 . . . Track 2 | . 1 1 . . . Fabricators . | . . . . . . Repair Stations . | . . . . . . Recycling Units . | . . . . . . Scanalyzers . | . . . . . . Garrison Access . | . . . . . . Data Cores Recovered . | . . . . . . Used . | . . . . . . Hacking Detections 8 | . 2 . . 1 5 Full Trace Events . | . . . . . . Feedback Events . | . . . . . . Feedback Blocked . | . . . . . . Robot Schematics Acquired . | . . . . . . Robots Built . | . . . . . . Authchips . | . . . . . . Time . | . . . . . . Total Robot Build Rating . | . . . . . . Part Schematics Acquired . | . . . . . . Parts Built . | . . . . . . Authchips . | . . . . . . Time . | . . . . . . Total Part Build Rating . | . . . . . . Parts Repaired . | . . . . . . Time . | . . . . . . Parts Recycled . | . . . . . . Recycled Matter . | . . . . . . Retrieved Matter . | . . . . . . Retrieved Components 4 | . . . . . 4 Parts Scanalyzed . | . . . . . . Part Schematics Acquired . | . . . . . . Parts Damaged . | . . . . . . Bothacking | -11 -10 -9 -9 -8 -7 ------------ Run | Scr Mat Mat Min Mat Fac Used RIF Installer . | . . . . . . Robots Hacked . | . . . . . . Non-combat . | . . . . . . Combat . | . . . . . . Robot Hacks Applied . | . . . . . . Relay Couplers Released 4 | . . . . . 4 Programmers 4 | . . . . . 4 Fabnet Peak Effective % . | . . . . . . Robots Rewired . | . . . . . . Allies Hacked . | . . . . . . Hacks Repelled . | . . . . . . Allies | -11 -10 -9 -9 -8 -7 -------- Run | Scr Mat Mat Min Mat Fac Total Allies 15 | . . . 3 . 12 Largest Group 4 | . . . 3 1 4 Highest-Rated Group 124 | . . . 40 16 124 Highest-Rated Ally 31 | . . . 16 16 31 Total Orders . | . . . . . . Ally Attacks 47 | . . . 42 5 . Total Damage 460 | . . . 373 87 . Kills 7 | . . . 7 . . Allies Corrupted . | . . . . . . Allies Melted . | . . . . . . Intel | -11 -10 -9 -9 -8 -7 ------- Run | Scr Mat Mat Min Mat Fac Robot Analysis Total . | . . . . . . Derelict Logs Recovered 2 | . . . 2 . . Drone Launches . | . . . . . . Drone Recoveries . | . . . . . . Exploration | -11 -10 -9 -9 -8 -7 ------------- Run | Scr Mat Mat Min Mat Fac Turns Passed 5285 | . 89 497 657 1153 2889 Spaces Moved 2407 | 1 66 227 399 463 1251 Core 184 | . . . 127 . 57 Treads 1206 | . . 207 272 15 712 Legs 595 | 1 66 20 . 336 172 Wheels 420 | . . . . 110 310 Hover 2 | . . . . 2 . Flight . | . . . . . . Fastest Speed 50 | 120 120 120 50 105 86 Average Speed 173 | 120 120 168 147 172 185 Slowest Speed 550 | 120 120 240 240 465 550 Overloaded Moves . | . . . . . . Propulsion Burnouts . | . . . . . . Robots Hopped . | . . . . . . Cave-ins Triggered . | . . . . . . Exploration Rate (%) 32 | 2 14 23 76 45 32 Regions Visited 5 Branch Regions 1 Pre-discovered Areas . | . . . . . . Known Exits Taken 1 | . . 1 . . . Unknown Exits Taken 4 | 1 1 . 1 1 . Scrap Searched . | . . . . . . Spaces Dug . | . . . . . . Terrain Destroyed 53 | . . . 2 47 4 Melee . | . . . . . . Projectile 53 | . . . 2 47 4 AOE . | . . . . . . Terrain Rammed . | . . . . . . Walls Destroyed . | . . . . . . Machines Disabled . | . . . . . . Actions | -11 -10 -9 -9 -8 -7 --------- Run | Scr Mat Mat Min Mat Fac Total 3079 | . 71 303 440 669 1596 Wait 242 | . . 34 7 63 138 Move 2402 | . 65 226 398 462 1251 Hop . | . . . . . . Pick Up 34 | . 2 4 4 17 7 Fast Attach 61 | . 1 5 10 11 34 Attach 23 | . . 1 1 11 10 Detach . | . . . . . . Swap 20 | . 1 6 1 5 7 Drop 44 | . . 7 1 12 24 Fire 189 | . 2 20 16 84 67 Melee 52 | . . . . . 52 Ram 5 | . . . 1 1 3 Kick 2 | . . . . 1 1 Crush 5 | . . . 1 2 2 Escape Stasis . | . . . . . . Rewire . | . . . . . . Trap . | . . . . . . Miscellaneous . | . . . . . . Route ------- -11/Scrapyard -10/Materials (discovered 2 exits: *Mat / Min) -9/Materials -9/Mines -8/Materials (discovered 2 exits: *Fac / Sto) -7/Factory (discovered 3 exits: [*Fac] / Low x2) History --------- Turn | Location | Event 1 | -11/Scrapyard | Discovered new exit (range 0) 1 | -11/Scrapyard | Entered Materials 17 | -10/Materials | Discovered new exit (range 17) 17 | -10/Materials | Identified exit to Mines 90 | -10/Materials | Entered another Materials area 90 | -9/Materials | Evolved 2 slots: Utility x2 325 | -9/Materials | Build established: Mutant 388 | -9/Materials | Identified exit to Mines 587 | -9/Materials | Entered Mines 590 | -9/Mines | Met a Derelict bent on vengeance 634 | -9/Mines | Learned Materials stockpile data 635 | -9/Mines | Assembled infested the area 675 | -9/Mines | Released all parts (8) 709 | -9/Mines | Core integrity fell below 50% 729 | -9/Mines | Assisted by bots powering up and referring to "LRC-V3" 967 | -9/Mines | A weapon hastily lodged in a ceiling crevice suddenly fell to the ground 1093 | -9/Mines | Learned location of 1 exit from Materials 1100 | -9/Mines | Lost 3 parts (1n1u1w) 1225 | -9/Mines | Discovered new exit (range 9) 1244 | -9/Mines | Entered Materials 1244 | -8/Materials | Accompanied by 1 ally 1244 | -8/Materials | Evolved 2 slots: Propulsion x2 1245 | -8/Materials | Identified exit to Storage 1424 | -8/Materials | Garrison activated, responded to threat 2315 | -8/Materials | Build established: Scavenger-Mutant 2389 | -8/Materials | Discovered new exit (range 8) 2397 | -8/Materials | Entered Factory 2397 | -7/Factory | Evolved 2 slots: Utility x2 2401 | -7/Factory | Lost 3 parts (1n1u1w) 3269 | -7/Factory | Lost 3 parts (3n) 3737 | -7/Factory | Cargo convoy interrupted 3772 | -7/Factory | Lost 6 parts (1p2n2u1w) 4061 | -7/Factory | System corruption reached 10% 4328 | -7/Factory | Identified exit to Lower Caves 4644 | -7/Factory | Lost 7 parts (1p4n2u) 4851 | -7/Factory | Build established: Mutant 5097 | -7/Factory | Core integrity fell below 50% 5271 | -7/Factory | Discovered new exit (range 16) 5279 | -7/Factory | Core integrity fell below 20% 5286 | -7/Factory | Self-destructed Last Messages --------------- 05275_ R-06 Scavenger collects Relay Coupler [Hunter]. 05275_ U-05 Engineer builds a Wall. 05276_ K-01 Serf collects debris. 05276_ U-05 Engineer lays Concrete. 05280_ K-01 Serf collects debris. 05280_ U-05 Engineer builds a Wall. 05281_ U-05 Engineer lays Concrete. 05281_ R-06 Scavenger collects Relay Coupler [Grunt]. 05281_ U-05 Engineer lays Concrete. 05282_ Slug penetrates Wall. 05282_ U-05 Engineer lays Concrete. 05284_ Penetrated by Slug. 05284_ Arm. Treads destroyed. 05284_ Knocked back. 05284_ K-01 Serf collects debris. 05284_ U-05 Engineer builds a Wall. 05284_ U-05 Engineer lays Concrete. 05284_ U-05 Engineer builds a Wall. 05285_ U-05 Engineer lays Concrete. 05286_ U-05 Engineer destroyed. Map ----- +----------------------------------------------------+ | ?+ % ???????? ????????? | | ?# ??????? ????????? | | ?# ##### #####????????#????????? | | ?# = #???###+####### ################????????? | | ?### ###?????????????# #?# #????????? | | #### #???????????????# #?# #????????? | | #???????????????# #?# #????????? | | #???????????????# #?# #????????? | | #?????????????### ### #????????? | | ##### ##?????????????# ! # #????????? | | ????# #??????????????# k # #????????? | | ????# #??????????????# + #????????? | | ????# #??????????? ?# # #????????? | | ????# #??????######;## t # #????????? | | ???##+######## ; ## ## #????????? | | ???# % # ## #????????? | | ???# r% ###############????????? | | ???# =%# #??????????????????????? | | ???# |#! %#??????????????????????? | | ???# """ """ ; #??????????????????????? | | ???# """ """ #?############?????????? | | ???# """ """u k # #?????????? | | ???# %# ""???????????? | | ???######### # # # """???????????? | | ???????????#### # ; #a R"???????????? | | ???????????? #%g@g """???????????? | | ?????????? # # "" ""???????????? | | ??????????? # # "" ??????????? | | ??????????? # #? """ ??????????? | | ???????????? ! # H #? """ ? ? ??????????? | | ????????????? # #???"""????????????????? | | ????????????? + +??? ????????????????? | | ?????????????? # #???? ????????????????? | | ??????????????????????# #?????##???????????????? | | ?????????????????????? ??????????????????????? | | ?????????????????????? ??????????????????????? | | ?????????????????????? < ??????????????????????? | | ?????????????????????# ??????????????????????? | | ?????????????????????# ??????????????????????? | | ?????????????????????### ##??????????????????????? | | ????????????????????????k????????????????????????? | | ???????????????????????? ????????????????????????? | | ?????????????????????????????????????????????????? | | ?????????????????????????????????????????????????? | | ?????????????????????????????????????????????????? | | ?????????????????????????????????????????????????? | | ?????????????????????????????????????????????????? | | ?????????????????????????????????????????????????? | | ?????????????????????????????????????????????????? | | ?????????????????????????????????????????????????? | +----------------------------------------------------+ Best States ------------- Heat Dissipation 48 Energy Generation 15 Energy Capacity 280 Matter Stores 300 Matter Capacity 300 Sight Range 16 Terrain Scan Range 16 Terrain Scan Density 185 Additional Mass Support 6 Armor Coverage 600 Evasion (%) 55 Targeting Accuracy 6 Melee Accuracy 12 Recoil Reduction 4 Item Schematics ----------------- None Robot Schematics ------------------ None Fabricated ------------ Nothing Alien Tech Used ----------------- None Achievements -------------- None Challenges ------------ None Game ------ Seed SalvageCompactAxe Manual? 0 Play Time 00:43:55 Cumulative 109.0 hours Start 2022.04.29 @ 00:49:22 End 2022.04.29 @ 01:35:55 Sessions 1 Manual Loads 0 Difficulty Rogue Special Mode None Game No. 133 Rogue 132 Adventurer 0 Explorer 1 Win Type - Total 1 Types 1/0/0/0/0/0/0/0/0 Lore% 56 Gallery% 54 Achievement% 46 Wizard Run 0 Options --------- ASCII 1 Keyboard 0 Movement Vi Keybinds 0 Fullscreen 1 Font 18/SmallcapsGlow Map View 76x50 Tactical HUD 1 Map Filters NONE Filters NONE Steam 1 RUN: 3189c06a-83c5-4e7c-91ee-b144eac2e81c